[Event "26th Triest Festival 2024"]
[Site "Triest"]
[Date "2024.09.02"]
[Round "4.10"]
[White "Bardone, Lorenzo"]
[Black "Schnaider, Ilan"]
[Result "0-1"]
[Annotator "TA"]
[ECO "D11"]
[WhiteElo "2234"]
[BlackElo "2409"]
[PlyCount "94"]
[EventDate "2024.09.02"]
[EventType "swiss"]
[EventCountry "ITA"]
[SourceTitle "playchess.com"]
[Source "ChessBase"]
[SourceQuality "1"]
[TimeControl "5400+30"]

{[%evp 9,94,0,18,18,23,12,5,0,4,0,0,7,0,0,0,0,16,25,19,0,-14,-9,-5,0,0,0,0,0,0,-25,-11,-14,0,-29,-34,-135,-117,-118,-127,-131,-19,-48,-33,-67,0,0,23,0,-16,-90,-86,-222,-189,-235,0,0,0,0,0,-60,-48,-192,-173,-199,-57,-138,-120,-115,-128,-110,-110,-154,-82,-100,-82,-102,-86,-1317,-1273,-1440,-1427,-1696,-1093,-1047,-1016,-956,-940]} 1. d4 {[%emt 0:00:10]} d5 {[%emt 0:04:48]} 2. c4 {[%emt 0:00:09]} c6 {[%emt 0:00:03]} 3. Nf3 {[%emt 0:00:15]} Nf6 {[%emt 0:00:05]} 4. g3 {[%emt 0:00:07]} dxc4 {[%emt 0:00:09]} 5. Bg2 {[%emt 0:01:11]} g6 {[%emt 0:00:16]} 6. O-O {[%emt 0:01:34][%mdl 1024] White has compensation.} Bg7 {[%emt 0:00:14]} 7. a4 {[%emt 0:01:23]} Ne4 {[%emt 0:00:10][%cal Bf6e4,Be4d6,Bd6f5,Bf5h6,Bh6f7][%mdl 32]} 8. Qc2 {[%emt 0:01:59][%csl LRc4,LRe4] The position is equal.} Nd6 {[%emt 0:00:10]} 9. e4 {[%emt 0:00:09][%cal Be2e4,Be4e5][%mdl 32]} Na6 {[%emt 0:00:49][%cal Bb8a6,Ba6b4,Bb4d5][%mdl 32]} 10. Na3 {[%emt 0:14:20]} Nb4 {[%emt 0:00:15]} 11. Qc3 {[%emt 0:04:24]} a5 {[%emt 0:00:20]} (11... Nxe4 $2 12. Qxb4 Qd6 13. Qxc4 $18) 12. e5 {[%emt 0:01:05]} Nd5 {[%emt 0:00:14]} 13. Qe1 {[%emt 0:06:59]} Nf5 {[%emt 0:00:12]} 14. g4 {[%emt 0:01:37]} Nh6 {[%emt 0:01:12]} 15. h3 {[%emt 0:00:05][%cal Oc1d2]} (15. Nxc4 Bxg4 16. Qe4 O-O $17) 15... O-O $1 {[%emt 0:01:10]} 16. Nxc4 {[%emt 0:00:38]} f5 {[%emt 0:01:05]} 17. g5 {[%emt 0:03:49]} Nf7 {[%emt 0:00:10]} 18. Bd2 {[%emt 0:03:08]} b6 {[%emt 0:01:12]} 19. Qc1 {[%emt 0:02:33]} Be6 {[%emt 0:04:50]} 20. h4 {[%emt 0:09:20]} Qc7 {[%emt 0:04:28]} 21. Ne1 {[%emt 0:06:45] [#]} f4 $1 {[%emt 0:17:09]} 22. Nd3 {[%emt 0:03:58] [#]} ({Better is} 22. Qd1 $15) (22. Be4 Rad8) 22... f3 $1 $17 {[%emt 0:04:11][%mdl 512]} 23. Bxf3 {[%emt 0:11:23] [#]} Nxg5 $1 {[%emt 0:00:27][%mdl 512]} 24. Bxd5 {[%emt 0:00:07]} cxd5 {[%emt 0:00:46]} (24... Nh3+ $1 $17 25. Kh2 cxd5) 25. hxg5 {[%emt 0:01:00]} dxc4 {[%emt 0:00:12]} 26. Nf4 {[%emt 0:01:00] [#]} Rxf4 {[%emt 0:13:58]} 27. Bxf4 $11 {[%emt 0:00:08]} Rf8 {[%emt 0:00:30]} 28. Ra3 {[%emt 0:01:42]} Qd7 {[%emt 0:00:50]} 29. Rd1 {[%emt 0:07:14]} (29. Qe3 $11 {keeps the balance.}) 29... Bd5 $17 {[%emt 0:02:23]} 30. f3 {[%emt 0:11:40] Repels Qg4+} (30. Rg3 $17 {was the only chance.}) 30... Qh3 $19 {[%emt 0:02:09][%cal Oh3h4]} 31. Kf2 {[%emt 0:00:44]} (31. Rf1 {was worth a try.}) 31... Qf5 $2 {[%emt 0:41:33]} ({Black should play} 31... Qh4+ $1 $19 32. Bg3 Qg4) 32. Kg3 $11 {[%emt 0:00:02]} e6 {[%emt 0:00:00]} 33. Rh1 {[%emt 0:01:17]} Rf7 {[%emt 0:00:00]} 34. Rh4 {[%emt 0:02:28]} ({White should try} 34. Qe3 $1 $11) 34... Bf8 $1 $36 {[%emt 0:00:00][%mdl 2048] Black has the initiative. The board is on fire.} 35. Re3 {[%emt 0:00:54] [#]} (35. Ra1 $1 $15) 35... Be7 $1 $19 {[%emt 0:00:00]} 36. Rc3 {[%emt 0:00:41] [#]} h5 {[%emt 0:00:00] Prevents Rg4.} (36... Bb4 $1 $19 37. b3 cxb3 (37... Bxc3 38. bxc4 Bxd4 39. cxd5 $19) 38. Rc8+ Bf8) 37. Qc2 {[%emt 0:01:03]} (37. Qe3 $15) 37... Bxg5 $17 {[%emt 0:00:00] Black is more active. A strong pair of Bishops.} 38. Qxf5 {[%emt 0:00:03]} Bxh4+ {[%emt 0:00:00]} 39. Kxh4 {[%emt 0:00:01]} Rxf5 {[%emt 0:00:00][%mdl 4096] Endgame. KRB-KRB} 40. Bg5 {[%emt 0:01:28]} Rf8 {[%emt 0:00:00]} ({Don't play} 40... Bxf3 $6 41. Rxc4 Bd5 42. Rc8+ Rf8 43. Rxf8+ Kxf8 44. Bd8 $11) ({Don't take} 40... Rxf3 41. Rxf3 Bxf3 42. Bd8 $17) (40... Kg7 $142 {[%cal Og7g8]} 41. f4 Rf7 42. Bf6+ Kh6) 41. Bf6 {[%emt 0:00:28]} Rb8 {[%emt 0:00:00]} 42. Kg5 {[%emt 0:00:39]} Kf7 {[%emt 0:00:00]} 43. b3 $2 {[%emt 0:01:41][%mdl 8192]} cxb3 $19 {[%emt 0:00:00] White must now prevent ...b2. Black is clearly winning.} 44. Rc7+ {[%emt 0:00:05]} Ke8 {[%emt 0:00:00]} 45. Rh7 {[%emt 0:01:02]} b2 {[%emt 0:00:00]} 46. Rh8+ {[%emt 0:00:05]} Kd7 {[%emt 0:00:00] ( -> ...Rxh8)} 47. Rxb8 {[%emt 0:00:38]} b1=Q {[%emt 0:00:00] Weighted Error Value: White=0.58/Black=0.39.  Loses game:     	White=1     	---        Missed win:     	---       	Black=1      Mistake:       	White=7     	Black=4      Inaccurate:     	White=5     	---        OK:         	White=10    	Black=17     Best:        	White=3     	Black=4      Strong:       	---       	Black=3      Brilliant:      	---       	Black=2} (47... b1=B $2 {is the wrong capture.} 48. Rxb6 Bf5 49. Ra6 $18) 0-1

[Event "26th Triest Festival 2024"]
[Site "Triest"]
[Date "2024.09.02"]
[Round "4.11"]
[White "Marn, Jan"]
[Black "Maldonado Gonzales, Stefano"]
[Result "1-0"]
[Annotator "TA"]
[ECO "D02"]
[WhiteElo "2344"]
[BlackElo "2187"]
[PlyCount "79"]
[EventDate "2024.09.02"]
[EventType "swiss"]
[EventCountry "ITA"]
[SourceTitle "playchess.com"]
[Source "ChessBase"]
[SourceQuality "1"]
[TimeControl "5400+30"]

{[%evp 11,79,-7,26,18,18,6,23,9,10,19,15,8,12,15,18,2,22,6,0,0,6,8,17,10,24,37,42,35,56,52,54,51,48,55,56,55,94,83,90,82,100,83,102,105,108,106,100,100,107,104,129,77,110,116,116,108,102,115,156,154,144,170,348,344,376,378,658,660,1048,593]} 1. d4 {[%emt 0:04:11]} d5 {[%emt 0:00:05]} 2. Bf4 {[%emt 0:00:12]} Nf6 {[%emt 0:00:05]} 3. Nf3 {[%emt 0:00:04]} e6 {[%emt 0:00:04]} 4. e3 {[%emt 0:00:05]} c5 {[%emt 0:00:06]} 5. c3 {[%emt 0:00:14]} Nc6 {[%emt 0:00:04]} 6. Nbd2 {[%emt 0:00:05]} cxd4 {[%emt 0:00:08]} 7. exd4 {[%emt 0:00:05]} Nh5 {[%emt 0:00:03]} 8. Be3 {[%emt 0:00:10]} Bd6 {[%emt 0:00:05]} 9. Bd3 {[%emt 0:00:08] White has an edge.} Nf4 {[%emt 0:00:10]} 10. Bxf4 {[%emt 0:00:07]} Bxf4 {[%emt 0:00:04]} 11. O-O {[%emt 0:00:08]} O-O {[%emt 0:00:19]} 12. Re1 {[%emt 0:01:47]} g6 {[%emt 0:01:27]} 13. g3 {[%emt 0:03:37]} Bc7 {[%emt 0:04:43]} 14. Nf1 {[%emt 0:03:38]} f6 {[%emt 0:08:01]} 15. Ne3 {[%emt 0:06:46]} Kg7 {[%emt 0:05:42]} 16. Bf1 {[%emt 0:04:13]} Ne7 {[%emt 0:02:58]} 17. Qd2 {[%emt 0:04:19]} Nf5 {[%emt 0:07:00]} 18. Nxf5+ {[%emt 0:02:55]} exf5 {[%emt 0:00:08]} 19. Nh4 {[%emt 0:01:28]} Qd6 {[%emt 0:04:59]} 20. Ng2 {[%emt 0:07:17]} Be6 {[%emt 0:02:20][%cal Bc8e6,Be6f7,Bf7e8,Be8c6][%mdl 32]} 21. Re3 {[%emt 0:02:32]} Bf7 {[%emt 0:02:59]} 22. Rae1 {[%emt 0:04:55]} Rfe8 {[%emt 0:01:48]} 23. Rxe8 {[%emt 0:03:06]} Rxe8 {[%emt 0:00:06]} 24. Rxe8 {[%emt 0:00:11]} Bxe8 {[%emt 0:00:04]} 25. Qc2 {[%emt 0:02:29]} Qe6 {[%emt 0:10:01]} 26. f4 {[%emt 0:09:10]} Qe4 {[%emt 0:20:04]} 27. Bd3 {[%emt 0:00:14][%cal Bf1d3,Bd3e2,Be2f3][%mdl 32]} Qe6 {[%emt 0:01:18]} 28. Kf2 {[%emt 0:01:20]} Bc6 {[%emt 0:09:53]} 29. Ne3 {[%emt 0:03:20]} Qd7 {[%emt 0:02:25]} 30. Be2 {[%emt 0:01:38]} a5 {[%emt 0:03:20]} 31. a3 {[%emt 0:01:35]} (31. Bf3 $142) 31... Ba4 {[%emt 0:03:33]} 32. b3 {[%emt 0:00:45][%cal Bb2b3,Bb3b4,Bb4b5][%mdl 32]} Bc6 {[%emt 0:00:11]} 33. Bf3 {[%emt 0:02:56]} b5 {[%emt 0:01:38]} 34. b4 {[%emt 0:00:27]} Kf7 {[%emt 0:02:00] [#]} 35. Qa2 $1 {[%emt 0:02:30]} Ke6 {[%emt 0:00:12]} 36. a4 {[%emt 0:00:37] Hoping for axb5. White is more active.} bxa4 {[%emt 0:06:24] [#]} (36... Bb7 {was necessary.}) 37. b5 $1 $18 {[%emt 0:00:09][%mdl 512]} Bb7 {[%emt 0:02:20]} (37... Bxb5 38. Nxd5 Kd6 39. c4 (39. Nxf6 Qc8 $18) 39... Bxc4 40. Qxc4 $18) (37... Ba8 38. c4) 38. c4 {[%emt 0:00:48][%cal Bc3c4,Bc4c5][%mdl 32]} (38. Qxa4 Bb6 39. Ke2 Qc8 $18) 38... Bb6 $2 {[%emt 0:01:29]} (38... Bd8 39. Qxa4 (39. cxd5+ Kf7 $16) (39. Nxd5 h5 $18) 39... dxc4) 39. c5 {[%emt 0:00:13]} ({Less strong is} 39. cxd5+ Kf7 $14) (39. Bxd5+ Bxd5 40. cxd5+ Kf7 41. Qxa4 Kg7 $16) ({And not} 39. Qxa4 dxc4 40. Qxc4+ Kd6 $11) 39... Qxb5 {[%emt 0:00:30]} 40. Bxd5+ {[%emt 0:29:01] Weighted Error Value: White=0.04 (flawless) /Black=0.36.  Mistake:       	White=1     	Black=2      Inaccurate:     	---       	Black=4      OK:         	White=16    	Black=10     Best:        	White=2     	---        Brilliant:      	White=1     	---} 1-0

[Event "26th Triest Festival 2024"]
[Site "Triest"]
[Date "2024.09.02"]
[Round "4.12"]
[White "Schlegel, Igor"]
[Black "Papadiamandis, Elliot"]
[Result "1-0"]
[Annotator "RC"]
[ECO "B86"]
[WhiteElo "2212"]
[BlackElo "2329"]
[PlyCount "67"]
[EventDate "2024.09.02"]
[EventType "swiss"]
[EventCountry "ITA"]
[SourceTitle "playchess.com"]
[Source "ChessBase"]
[SourceQuality "1"]
[TimeControl "5400+30"]

1. e4 {[%emt 0:00:03]} c5 {[%emt 0:02:54]} 2. Nf3 {[%emt 0:00:04]} d6 {[%emt 0:00:09]} 3. d4 {[%emt 0:00:04]} Nf6 {[%emt 0:00:08]} 4. Nc3 {[%emt 0:01:58]} cxd4 {[%emt 0:00:30]} 5. Nxd4 {[%emt 0:00:24]} a6 {[%emt 0:00:09]} 6. Bc4 {[%emt 0:01:19]} e6 {[%emt 0:00:33]} 7. Bb3 {[%emt 0:00:54]} Nbd7 {[%emt 0:00:23]} 8. Be3 {[%emt 0:00:16]} Nc5 {[%emt 0:01:28]} 9. f3 {[%emt 0:00:18]} Qc7 {[%emt 0:03:58]} 10. Qd2 {[%emt 0:01:03]} b5 {[%emt 0:02:38]} 11. g4 {[%emt 0:10:20]} Bb7 {[%emt 0:14:38]} 12. O-O-O {[%emt 0:03:05]} Nfd7 {[%emt 0:04:17]} 13. a3 {[%emt 0:15:24]} Nxb3+ {[%emt 0:05:19]} 14. cxb3 {[%emt 0:02:12]} Be7 {[%emt 0:07:37]} 15. Kb1 {[%emt 0:01:25]} O-O {[%emt 0:01:14]} 16. Rc1 {[%emt 0:06:19]} Qd8 {[%emt 0:06:03]} 17. g5 {[%emt 0:03:19]} Nc5 {[%emt 0:14:31]} 18. Ka2 {[%emt 0:25:39]} Re8 {[%emt 0:14:25]} 19. h4 {[%emt 0:05:40]} Bf8 {[%emt 0:03:16]} 20. h5 {[%emt 0:00:26]} d5 {[%emt 0:08:21]} 21. e5 {[%emt 0:04:53]} Nd7 {[%emt 0:01:26]} 22. f4 {[%emt 0:00:34]} b4 {[%emt 0:01:05]} 23. axb4 {[%emt 0:00:32]} a5 {[%emt 0:01:21]} 24. b5 {[%emt 0:01:20]} Bb4 {[%emt 0:00:53]} 25. Qc2 {[%emt 0:08:41]} Bxc3 {[%emt 0:02:26]} 26. bxc3 {[%emt 0:00:22]} Nc5 {[%emt 0:00:29]} 27. g6 {[%emt 0:00:29]} Ne4 {[%emt 0:00:33]} 28. Qg2 {[%emt 0:02:41]} a4 {[%emt 0:00:50]} 29. gxf7+ {[%emt 0:00:53]} Kxf7 {[%emt 0:00:01]} 30. b4 {[%emt 0:00:32]} Kg8 {[%emt 0:01:05]} 31. Rhg1 {[%emt 0:00:55]} Qd7 {[%emt 0:00:13]} 32. f5 {[%emt 0:00:17]} exf5 {[%emt 0:00:10]} 33. e6 {[%emt 0:00:22]} Qc7 {[%emt 0:00:26]} 34. Bf4 {[%emt 0:00:35]} 1-0